Cogmind - Beta 15 @@@ ROGUE MODE // 2025.06.15 @ 00:08:14 Player: Polariusz Result: Destroyed by G-67 Veteran with Plasma Rifle Performance ------------- Evolutions (5) 2500 Regions Visited (10) 2000 Robots Destroyed (89) 445 Value Destroyed (5252) 5252 Prototype IDs (43) 860 Alien Tech Used (1) 200 Bonus (3692) 3692 TOTAL SCORE: 14949 Bonus ------- High Alert Combat Kills 1326 Follower Combat Kills 576 Entered Garrisons 200 Used RIF Installer 500 Registered with UFD 300 Met Optimus in HQ 500 Met Zhirov 300 Friendly Fire -10 Cogmind --------- Core Integrity 0/1000 Matter 173/300 Energy 471/600 System Corruption 34% Temperature Warning (343) Movement Walking (120) Location -4/Proximity Caves Parts ------- > --- POWER (2) -------- (None) > --- PROPULSION (4) --- Advanced Myomer Leg Advanced Myomer Leg > --- UTILITY (7) ------ Advanced Heat Sink Advanced Energy Well Advanced Targeting Computer Experimental Core Shielding > --- WEAPON (4) ------- Nova Cannon > --- INVENTORY (5) ---- Advanced Myomer Leg Advanced Weapon Cycler Heavy Mace Peak State ------------ > --- POWER ------------ Light Fission Core Light Fission Core > --- PROPULSION ------- Carbon-fiber Leg Carbon-fiber Leg Improved VSS Leg Improved VSS Leg > --- UTILITY ---------- Advanced Heat Sink Advanced Heat Sink Advanced Heat Sink Advanced Heat Sink Large Storage Unit Spectral Analyzer Improved Medium Armor Plating > --- WEAPON ----------- Heavy Laser Heavy Laser Quantum Rifle Matter Neutralizer > --- INVENTORY -------- Light Fission Core Particle Reactor Particle Reactor Coolant Injector Improved Reaction Control System Layered Medium Armor Plating Heavy Laser Heavy Laser Wave Gun Mass Driver Mass Driver Hardcell Cannon Grenade Launcher Heavy Mace [Rating: 90] Favorites ----------- Power Light Ion Engine Engine Light Ion Engine Power Core Light Fission Core Reactor Particle Reactor Propulsion Light Treads Treads Light Treads Leg Armored Leg Wheel Wheel Utility Large Storage Unit Device Advanced Heat Sink Storage Large Storage Unit Processor Spectral Analyzer Hackware Hacking Suite Protection Makeshift Light Armor Plating Weapon Heavy Laser Energy Gun Heavy Laser Energy Cannon Heavy Plasma Cannon Ballistic Gun Assault Rifle Ballistic Cannon Mass Driver Launcher Grenade Launcher Impact Weapon Heavy Mace Build | -11 -10 -10 -7 -5 -5 -5 -5 -5 -5 -4 ------- Run | Yrd Mat Sub Scr Fac Gar Fac Upp Upp Zhi Pro Slots Evolved 10 | . . . . 10 . . . . . . Power 1 | . . . . 1 . . . . . . Propulsion 2 | . . . . 2 . . . . . . Utility 5 | . . . . 5 . . . . . . Weapon 2 | . . . . 2 . . . . . . Parts Attached 114 | 5 3 7 4 17 41 4 15 8 7 3 Power 17 | . 1 1 . 3 8 . 2 1 1 . Engine 7 | . 1 1 . 2 2 . . . 1 . Core 7 | . . . . 1 4 . 2 . . . Reactor 3 | . . . . . 2 . . 1 . . Propulsion 30 | 2 . 1 2 8 6 1 5 2 3 . Treads 10 | . . . 2 . 3 1 4 . . . Leg 16 | . . . . 8 3 . 1 1 3 . Wheel 4 | 2 . 1 . . . . . 1 . . Hover . | . . . . . . . . . . . Flight . | . . . . . . . . . . . Utility 36 | 1 2 1 . 5 13 1 5 4 3 1 Device 16 | . . . . 2 8 . 3 1 1 1 Storage 3 | 1 1 . . . . . . . 1 . Processor 4 | . 1 . . 1 1 . . 1 . . Hackware 4 | . . . . 2 . . 1 1 . . Protection 9 | . . 1 . . 4 1 1 1 1 . Artifact . | . . . . . . . . . . . Weapon 31 | 2 . 4 2 1 14 2 3 1 . 2 Energy Gun 9 | . . 1 . . 5 . 3 . . . Energy Cannon 5 | . . . . 1 3 . . . . 1 Ballistic Gun 5 | 2 . 2 . . 1 . . . . . Ballistic Cannon 7 | . . . . . 4 2 . . . 1 Launcher 1 | . . . . . 1 . . . . . Special Weapon . | . . . . . . . . . . . Impact Weapon 4 | . . 1 2 . . . . 1 . . Slashing Weapon . | . . . . . . . . . . . Piercing Weapon . | . . . . . . . . . . . Special Melee Weapon . | . . . . . . . . . . . Unidentified Prototypes 6 | . . . . . . . 1 . 5 . Corrupted Parts 1 | . . . . . . . . . . 1 System Corruption 5 | . . . . . . . . . . 5 Parts Lost 48 | . . 3 . . 8 5 19 7 . 6 Power 12 | . . 1 . . 6 . 3 1 . 1 Propulsion 11 | . . 1 . . 1 1 5 3 . . Utility 15 | . . . . . . 3 7 2 . 3 Weapon 10 | . . 1 . . 1 1 4 1 . 2 Highest Loss Streak 9 | . . 3 . . 2 3 9 4 . 6 To Critical Strikes 1 | . . . . . . 1 . . . . Average Backups 11 | 2 9 13 12 10 12 11 9 4 5 3 Power 1 | 1 2 2 2 . 2 3 2 . . . Propulsion . | 1 2 2 . . 1 . . . . 1 Utility 3 | . 1 3 4 2 3 3 3 1 1 1 Weapon 4 | . 2 4 5 6 5 4 3 1 3 1 Tool/Special . | . . . . . . . . . . . Unused Backups 13 | . . 1 1 3 5 . 1 2 . . Power 1 | . . . . . 1 . . . . . Propulsion 3 | . . . . 2 . . . 1 . . Utility 5 | . . . 1 . 2 . 1 1 . . Weapon 4 | . . 1 . 1 2 . . . . . Tool/Special . | . . . . . . . . . . . Average Slot Usage (%) 74 | . 90 78 85 63 90 72 40 23 42 60 Engine 5 | . 9 4 14 10 1 . . . 2 5 Core 1 | . . . . 1 5 . . . . . Treads 9 | . . . 27 8 3 19 9 . . . Leg 6 | . . . . 4 17 . . 1 6 11 Wheel 3 | . 28 16 . . . . . 2 2 . Device 6 | . . . . 8 12 16 7 . 2 5 Storage 7 | . 14 14 14 5 5 5 3 . 2 5 Processor 5 | . 9 5 . 5 8 5 3 3 5 5 Hackware 2 | . . . . 7 6 . . . 5 3 Protection 6 | . . 8 14 5 4 5 1 . 7 11 Energy Gun 3 | . . 5 . . 6 . 1 7 5 4 Energy Cannon 2 | . . . . 4 3 8 5 . . 3 Ballistic Gun 3 | . 28 17 . . . . . . . . Ballistic Cannon 2 | . . . . . 7 3 . . . 2 Impact Weapon 3 | . . 5 14 . . . . 2 . . Peak Build Rating 90 | 5 9 16 16 69 90 79 65 30 73 72 Average Rating 42 | 3 7 11 13 46 77 66 41 19 43 64 On Entrance 31 | . 5 9 15 15 69 66 51 30 21 66 Naked Turns 3 | . . . . . . . 3 . . . Heaviest Build 80 | 9 27 31 31 48 74 80 74 33 21 31 Greatest Support 101 | 20 20 20 40 64 74 101 59 56 90 60 Greatest Overweight (x) 14 | . 1 3 3 2 14 . 4 1 . . Average Overweight (x) . | . . 1 . . . . . . . . Largest Inventory Capacity 15 | 8 15 15 15 15 15 15 15 5 5 5 Average Capacity 13 | 7 12 15 15 15 15 15 11 5 5 5 Most Carried 15 | 5 13 15 15 15 15 14 15 5 5 4 Average Carried 11 | 3 9 14 13 10 13 12 10 4 4 3 Final Capacity 15 | 8 15 15 15 15 15 15 5 5 5 5 Final Carried 15 | 4 13 15 13 15 13 12 3 5 5 3 Class Distribution -------------------- 54% | Mutant 16% | Scavenger-Gunner 12% | Scavenger-Mutant 10% | Scavenger-Tank 5% | Hacker-Mutant Dominant Class ---------------- Mutant | -10/Materials Mutant | -10/Subcaves Mutant | -7/Scraptown Hacker-Mutant | -5/Factory Scavenger-Gunner | -5/Garrison Scavenger-Tank | -5/Factory Scavenger-Mutant | -5/Upper Caves Mutant | -5/Upper Caves Derelict-Mutant | -5/Zhirov Mutant | -4/Proximity Caves Resources | -11 -10 -10 -7 -5 -5 -5 -5 -5 -5 -4 ----------- Run | Yrd Mat Sub Scr Fac Gar Fac Upp Upp Zhi Pro Matter Collected 3967 | 250 163 167 129 172 1936 452 525 173 . . Remotely . | . . . . . . . . . . . Salvage Created 3904 | . 268 106 41 267 1727 560 677 99 . 159 Parts 156 | . 32 13 2 21 41 18 22 2 . 5 Haulers Intercepted . | . . . . . . . . . . . Recyclers Shooed 1 | . 1 . . . . . . . . . Parts Field Recycled . | . . . . . . . . . . . Retrieved Matter . | . . . . . . . . . . . Parts Self-Destructed 58 | . . 22 . . . . 16 19 . 1 Prevented 5 | . . . . . . . 2 3 . . Kills | -11 -10 -10 -7 -5 -5 -5 -5 -5 -5 -4 ------- Run | Yrd Mat Sub Scr Fac Gar Fac Upp Upp Zhi Pro Combat Hostiles Destroyed 80 | . 8 4 1 4 36 11 11 3 . 2 Melee 4 | . . . 1 . 2 . 1 . . . Guns 20 | . 8 4 . . 5 . . 3 . . Cannons 49 | . . . . 3 25 11 8 . . 2 Classes Destroyed 19 | . 6 1 1 2 5 2 2 . . . Worker 1 | . 1 . . . . . . . . . Builder 2 | . 1 . . . . 1 . . . . Recycler 1 | . . . . . . 1 . . . . Minesweeper 1 | . . . . . . . 1 . . . Operator 2 | . 1 . . 1 . . . . . . Watcher 2 | . 2 . . . . . . . . . Swarmer 19 | . 6 2 . . 6 . 3 2 . . Cutter 1 | . . . . . 1 . . . . . Saboteur 5 | . . . . . 5 . . . . . Grunt 24 | . 2 . . . 10 6 3 1 . 2 Brawler 5 | . . . . . . 2 3 . . . Duelist 3 | . . . . . 1 2 . . . . Sentry 9 | . . . . 1 5 1 2 . . . Hunter 3 | . . . . . 3 . . . . . Programmer 3 | . . . . 3 . . . . . . Behemoth 5 | . . . . . 5 . . . . . Subdweller 2 | . . 2 . . . . . . . . Ranger 1 | . . . 1 . . . . . . . Samaritan 1 | . . . . . . . 1 . . . Best Kill Streak 5 | . 4 3 1 2 5 4 4 2 . 1 Combat Bots Only 5 | . 3 3 1 2 5 4 4 2 . 1 Max Kills in Single Turn 2 | . 1 1 1 1 2 2 2 1 . 1 Gunslinging . | . . . . . . . . . . . Exploded . | . . . . . . . . . . . Melee 1 | . . . 1 . 1 . 1 . . . Uniques/NPCs Destroyed . | . . . . . . . . . . . Combat | -11 -10 -10 -7 -5 -5 -5 -5 -5 -5 -4 -------- Run | Yrd Mat Sub Scr Fac Gar Fac Upp Upp Zhi Pro Hostile Shots Fired 631 | . 28 50 4 19 203 94 106 58 . 69 Missed 172 | . 11 19 1 5 64 25 16 13 . 18 Hits 459 | . 17 31 3 14 139 69 90 45 . 51 Melee 29 | . . . . . 12 11 6 . . . Projectile 430 | . 17 31 3 14 127 58 84 45 . 51 AOE 1 | . . . . . 1 . . . . . Critical Strikes 27 | . . 1 . 1 14 3 2 2 . 4 Actively Blocked 1 | . . . . . . . . . . 1 Damage Taken 9107 | . 141 317 44 279 2977 1836 1711 787 . 1015 Core 1134 | . 47 55 27 . 332 78 201 246 . 148 Absorbed by Shields 6 | . . . . . 6 . . . . . Redirected to Shielding 90 | . . . . . . . . . . 90 Core Remaining (%) 74 | 100 . . 48 . . . . . . . Volleys Fired 273 | . 28 12 . 13 112 40 42 17 . 9 Largest 4 | . 2 2 . 1 4 3 2 2 . 2 Hottest 337 | . 40 70 . 40 337 285 180 176 . 201 Shots Fired 587 | . 56 23 . 13 317 72 67 26 1 12 Gun 241 | . 56 23 . . 126 . 5 26 1 4 Cannon 343 | . . . . 13 188 72 62 . . 8 Launcher 3 | . . . . . 3 . . . . . Special . | . . . . . . . . . . . Kinetic 309 | . 56 22 . . 161 62 6 . . 2 Thermal 275 | . . 1 . 13 153 10 61 26 1 10 Explosive 3 | . . . . . 3 . . . . . Electromagnetic . | . . . . . . . . . . . Robot Hit Streak 12 | . 8 10 . 3 10 9 12 4 . 2 Robot Miss Streak 11 | . 3 2 . 3 11 3 3 4 . 4 Penetration Max . | . . . . . . . . . . . Secondary Targets 3 | . 1 1 . . . . . 1 . . Max Gunslinging Chain 1 | . 1 1 . . . . . 1 . . Shots Hit Robots 361 | . 35 16 1 6 193 46 47 12 . 5 Core Hits 145 | . 17 7 1 4 68 21 20 4 . 3 Critical Kills 5 | . 1 . . 1 3 . . . . . Critical Parts Destroyed 7 | . 1 . . . 4 . . 1 . 1 Critical Strikes 34 | . 2 1 . 1 22 6 . 1 . 1 Burn 4 | . . 1 . . 3 . . . . . Meltdown 4 | . . . . 1 3 . . . . . Destroy 6 | . 2 . . . 2 . . 1 . 1 Blast 17 | . . . . . 11 6 . . . . Smash 3 | . . . . . 3 . . . . . Melee Attacks 27 | . . 11 1 . 10 . 5 . . . Impact 27 | . . 11 1 . 10 . 5 . . . Slashing . | . . . . . . . . . . . Piercing . | . . . . . . . . . . . Sneak Attacks . | . . . . . . . . . . . Combat Hostiles . | . . . . . . . . . . . Follow-up Attacks . | . . . . . . . . . . . Damage Inflicted 12230 | . 432 210 57 333 6435 2435 1694 378 . 256 Guns 2692 | . 432 210 . . 1570 . 38 378 . 64 Cannons 8366 | . . . . 333 3908 2435 1498 . . 192 Explosions 71 | . . . . . 71 . . . . . Melee 1101 | . . . 57 . 886 . 158 . . . Ramming . | . . . . . . . . . . . Kinetic 5895 | . 432 197 . . 2781 2206 279 . . . Thermal 5163 | . . 13 . 333 2697 229 1257 378 . 256 Explosive 71 | . . . . . 71 . . . . . Electromagnetic . | . . . . . . . . . . . Impact 1101 | . . . 57 . 886 . 158 . . . Slashing . | . . . . . . . . . . . Piercing . | . . . . . . . . . . . Highest Corruption 34 | . 1 1 1 3 8 16 29 29 29 34 Average Corruption 8 | . 1 1 1 2 6 11 20 29 29 32 Corruption Purged . | . . . . . . . . . . . Corruption Blocked . | . . . . . . . . . . . Effects 289 | . 2 10 22 6 101 36 46 53 9 4 Message Errors 53 | . . 1 1 1 24 4 12 9 1 . Matter Fused 76 | . 1 4 7 2 27 8 10 16 1 . Heat Flow Errors 30 | . . 1 3 1 10 3 2 8 1 1 Energy Discharges 40 | . . 3 6 . 15 4 4 5 3 . Parts Rejected 4 | . . . . 1 1 1 . 1 . . Parts Fused 2 | . . . . . . 1 . 1 . . Data Loss (minor) 30 | . 1 1 2 1 13 5 4 1 1 1 Data Loss (major) 19 | . . . 2 . 4 5 4 3 1 . Misfires 14 | . . . . . 6 . 4 3 1 . Alerts 8 | . . . 1 . . 1 4 2 . . Misdirections 2 | . . . . . . . . 2 . . Weapon Failures 11 | . . . . . 1 4 2 2 . 2 Overload Shots . | . . . . . . . . . . . Overflow Damage 640 | . . . . 11 538 11 80 . . . Projectiles 134 | . . . . 11 42 11 70 . . . Explosions . | . . . . . . . . . . . Melee 506 | . . . . . 496 . 10 . . . Knockbacks 28 | . . . . . 12 16 . . . . Impact 1 | . . . . . 1 . . . . . Kinetic 24 | . . . . . 11 13 . . . . Secondary 3 | . . . . . . 3 . . . . Self-Inflicted Damage . | . . . . . . . . . . . Shots . | . . . . . . . . . . . Rammed . | . . . . . . . . . . . Targets Rammed . | . . . . . . . . . . . Kicked . | . . . . . . . . . . . Crushed . | . . . . . . . . . . . Highest Temperature 543 | . 1 241 278 148 447 81 543 384 169 471 Average Temperature 111 | . 1 121 125 78 94 29 115 126 77 247 Received Heat Transfer 2477 | . 12 126 . . 1038 387 360 198 . 356 Effects 16 | . . . 1 . 4 . 9 1 . 1 Shutdowns 3 | . . . . . . . 2 1 . . Energy Bleed 2 | . . . 1 . . . . . . 1 Interference 3 | . . . . . 3 . . . . . Matter Decay 1 | . . . . . . . 1 . . . Damage (minor) 1 | . . . . . 1 . . . . . Damage (major) 6 | . . . . . . . 6 . . . Siege Activations . | . . . . . . . . . . . Martial Activations . | . . . . . . . . . . . Shielding Activations . | . . . . . . . . . . . Robots Disrupted . | . . . . . . . . . . . Combat Hostiles . | . . . . . . . . . . . Robots Corrupted 4 | . . . . . 3 . 1 . . . Combat Hostiles 3 | . . . . . 2 . 1 . . . Parts Fried 4 | . . . . . 4 . . . . . Impact Corruptions 12 | . . . . . 10 1 1 . . . Robots Melted 6 | . . . . 1 4 . 1 . . . Combat Hostiles 6 | . . . . 1 4 . 1 . . . Parts Melted 24 | . . . . 3 18 1 2 . . . Heat Transferred 6272 | . . 111 . . 3123 337 1961 518 . 222 Parts Sabotaged 15 | . . . . . 15 . . . . . Parts Stolen . | . . . . . . . . . . . Parts Stripped . | . . . . . . . . . . . Power Chain Reactions . | . . . . . . . . . . . Alert | -11 -10 -10 -7 -5 -5 -5 -5 -5 -5 -4 ------- Run | Yrd Mat Sub Scr Fac Gar Fac Upp Upp Zhi Pro Maximum Alert Level 5 | . . . . . 5 5 . . . . Low Security (%) 26 | 100 100 . . 100 3 . . . . . Level 1 2 | . . . . . 4 . . . . . Level 2 14 | . . . . . 23 . . . . . Level 3 5 | . . . . . 8 . . . . . Level 4 27 | . . . . . 23 93 . . . . Level 5 24 | . . . . . 37 6 . . . . High Security . | . . . . . . . . . . . Max Security . | . . . . . . . . . . . Peak Influence 3041 | . 116 . . 99 3041 1617 . . . . Initial 1596 | . . . . . . 1596 . . . . Average 1065 | . 55 . . 19 1369 1527 . . . . Influence Increases 4797 | . 268 100 . 150 3241 349 324 325 . 40 Destroy 0b10 Robot/C 1940 | . 160 40 . 80 880 220 260 260 . 40 Destroy 0b10 Robot/NC 65 | . 25 . . 5 20 10 5 . . . Destroy Leader 174 | . 34 . . 30 50 30 10 20 . . Allied During Kill 50 | . . . . . 16 . 4 30 . . Successful Hack 36 | . 18 . . 8 10 . . . . . Disable Machine 60 | . . . . 15 45 . . . . . Anti-Garrison Action 1900 | . . . . . 1900 . . . . . Destroy Structure 332 | . 1 . . 12 275 44 . . . . Lose Combat Pursuer 240 | . 30 60 . . 45 45 45 15 . . Influence Decreases 4777 | . 260 108 . 150 200 1863 1160 657 359 20 Entered New Map 2507 | . . 4 . . . 1445 566 133 359 . Time Decay 1700 | . 260 74 . 150 . 368 404 434 . 10 Lost Part 430 | . . 30 . . 80 50 190 70 . 10 Lost Ally 140 | . . . . . 120 . . 20 . . Squads Dispatched 8 | . 2 . . 1 . 5 . . . . Investigation . | . . . . . . . . . . . Extermination 2 | . . . . 1 . 1 . . . . Reinforcement 3 | . 2 . . . . 1 . . . . Assault 3 | . . . . . . 3 . . . . Garrison . | . . . . . . . . . . . Intercept . | . . . . . . . . . . . Searches Triggered . | . . . . . . . . . . . Construction Impeded 1 | . . . . . . 1 . . . . Haulers Reinforced . | . . . . . . . . . . . Active Scanning Responses . | . . . . . . . . . . . Cargo Convoy Interrupts . | . . . . . . . . . . . Stealth | -11 -10 -10 -7 -5 -5 -5 -5 -5 -5 -4 --------- Run | Yrd Mat Sub Scr Fac Gar Fac Upp Upp Zhi Pro Distress Signals 2 | . 1 . . . . 1 . . . . Communications Jammed . | . . . . . . . . . . . Distress Signals . | . . . . . . . . . . . Times Spotted 145 | . 16 9 3 8 50 23 22 9 . 5 Peak Tracking Total 9 | . 4 6 2 2 9 9 6 5 . 5 Tactical Retreats 11 | . 1 3 . . 2 2 2 1 . . Traps | -11 -10 -10 -7 -5 -5 -5 -5 -5 -5 -4 ------- Run | Yrd Mat Sub Scr Fac Gar Fac Upp Upp Zhi Pro Traps Triggered 7 | . 1 . . . 4 2 . . . . Indirectly . | . . . . . . . . . . . Trap Hack Attempts . | . . . . . . . . . . . Triggered . | . . . . . . . . . . . Disarmed . | . . . . . . . . . . . Reprogrammed . | . . . . . . . . . . . Reused . | . . . . . . . . . . . Traps Extracted . | . . . . . . . . . . . Installed . | . . . . . . . . . . . Triggered . | . . . . . . . . . . . Machines | -11 -10 -10 -7 -5 -5 -5 -5 -5 -5 -4 ---------- Run | Yrd Mat Sub Scr Fac Gar Fac Upp Upp Zhi Pro Machines Disabled 18 | . . 1 . 1 15 . 1 . . . Max in Single Turn 2 | . . 1 . 1 2 . 1 . . . Garrison Relay 5 | . . . . . 5 . . . . . Phase Generator 1 | . . . . . 1 . . . . . Machines Repaired . | . . . . . . . . . . . Machines Dismantled . | . . . . . . . . . . . Machines Sabotaged . | . . . . . . . . . . . Overloaded Fab Kills . | . . . . . . . . . . . Hacking | -11 -10 -10 -7 -5 -5 -5 -5 -5 -5 -4 --------- Run | Yrd Mat Sub Scr Fac Gar Fac Upp Upp Zhi Pro Machines Accessed 32 | . 4 2 8 6 3 1 1 1 6 . Terminals 9 | . 2 . . 3 3 1 . . . . Fabricators 1 | . . . . 1 . . . . . . Repair Stations 1 | . . . . 1 . . . . . . Recycling Units 2 | . 2 . . . . . . . . . Scanalyzers . | . . . . . . . . . . . Garrison Access 1 | . . . . 1 . . . . . . Total Hacks 120 | . 17 13 48 9 10 2 1 1 19 . Successful 95 | . 8 13 48 3 2 . 1 1 19 . Failed 25 | . 9 . . 6 8 2 . . . . Catastrophic 3 | . . . . . 3 . . . . . Database Lockouts . | . . . . . . . . . . . Manual 22 | . 12 . . 6 4 . . . . . Terminals 29 | . 11 . . 6 10 2 . . . . Fabricators 1 | . . . . 1 . . . . . . Repair Stations 1 | . . . . 1 . . . . . . Recycling Units 6 | . 6 . . . . . . . . . Scanalyzers . | . . . . . . . . . . . Garrison Access 1 | . . . . 1 . . . . . . Terminal Hacks 91 | . 6 13 48 1 2 . 1 1 19 . Record 60 | . . 12 41 . . . . . 7 . Part Schematic 4 | . . . . . . . . . 4 . Robot Analysis 10 | . . . 6 . . . . . 4 . Prototype ID Bank 9 | . 5 . . . . . . . 4 . Open Door 2 | . . . . . . . 1 1 . . Emergency Access Points 1 | . . . . . 1 . . . . . Garrison Index 1 | . . . . 1 . . . . . . Recall Reinforcements 1 | . 1 . . . . . . . . . Garrison Registry 1 | . . . . . 1 . . . . . Proto ID Catalog 2 | . . 1 1 . . . . . . . Fabricator Hacks 1 | . . . . 1 . . . . . . Network Status 1 | . . . . 1 . . . . . . Repair Station Hacks . | . . . . . . . . . . . Recycling Unit Hacks 2 | . 2 . . . . . . . . . Retrieve Components 2 | . 2 . . . . . . . . . Scanalyzer . | . . . . . . . . . . . Garrison Access Hacks 1 | . . . . 1 . . . . . . Unlock Access 1 | . . . . 1 . . . . . . Unauthorized Hacks . | . . . . . . . . . . . Terminals . | . . . . . . . . . . . Fabricators . | . . . . . . . . . . . Repair Stations . | . . . . . . . . . . . Recycling Units . | . . . . . . . . . . . Scanalyzers . | . . . . . . . . . . . Garrison Access . | . . . . . . . . . . . Data Cores Recovered 1 | . . . . 1 . . . . . . Used . | . . . . . . . . . . . Hacking Detections 10 | . 4 . . 2 3 1 . . . . Full Trace Events 3 | . . . . . 3 . . . . . Feedback Events . | . . . . . . . . . . . Feedback Blocked . | . . . . . . . . . . . Robot Schematics Acquired . | . . . . . . . . . . . Robots Built . | . . . . . . . . . . . Authchips . | . . . . . . . . . . . Time . | . . . . . . . . . . . Total Robot Build Rating . | . . . . . . . . . . . Part Schematics Acquired 4 | . . . . . . . . . 4 . Parts Built . | . . . . . . . . . . . Authchips . | . . . . . . . . . . . Time . | . . . . . . . . . . . Total Part Build Rating . | . . . . . . . . . . . Parts Repaired . | . . . . . . . . . . . Time . | . . . . . . . . . . . Parts Recycled . | . . . . . . . . . . . Recycled Matter . | . . . . . . . . . . . Retrieved Matter . | . . . . . . . . . . . Retrieved Components 12 | . 12 . . . . . . . . . Parts Scanalyzed . | . . . . . . . . . . . Part Schematics Acquired . | . . . . . . . . . . . Parts Damaged . | . . . . . . . . . . . Bothacking | -11 -10 -10 -7 -5 -5 -5 -5 -5 -5 -4 ------------ Run | Yrd Mat Sub Scr Fac Gar Fac Upp Upp Zhi Pro Used RIF Installer 1 | . . . . . 1 . . . . . Robots Hacked . | . . . . . . . . . . . Non-combat . | . . . . . . . . . . . Combat . | . . . . . . . . . . . Robot Hacks Applied . | . . . . . . . . . . . Relay Couplers Released 19 | . . . . . 19 . . . . . Machine Destruction 19 | . . . . . 19 . . . . . Fabnet Peak Effective % . | . . . . . . . . . . . Robots Rewired 8 | . . . . . 6 . 2 . . . Allies Hacked . | . . . . . . . . . . . Hacks Repelled . | . . . . . . . . . . . Allies | -11 -10 -10 -7 -5 -5 -5 -5 -5 -5 -4 -------- Run | Yrd Mat Sub Scr Fac Gar Fac Upp Upp Zhi Pro Total Allies 8 | . . . . . 6 . 2 . . . Largest Group 4 | . . . . . 4 . 2 2 1 1 Highest-Rated Group 111 | . . . . . 111 . 79 79 49 49 Highest-Rated Ally 85 | . . . . . 85 . 49 49 49 49 Total Orders . | . . . . . . . . . . . Ally Attacks 64 | . . . . . 34 . 7 22 . 1 Total Damage 1736 | . . . . . 774 . 256 681 . 25 Kills 20 | . . . . . 8 . 2 10 . . Allies Corrupted . | . . . . . . . . . . . Allies Melted . | . . . . . . . . . . . Intel | -11 -10 -10 -7 -5 -5 -5 -5 -5 -5 -4 ------- Run | Yrd Mat Sub Scr Fac Gar Fac Upp Upp Zhi Pro Active Infowar (turns) 7045 | . 421 457 . 835 3839 843 650 . . . Optics 7045 | . 421 457 . 835 3839 843 650 . . . Robot Analysis Total 10 | . . . 6 . . . . . 4 . Derelict Logs Recovered 6 | . . 2 . . . . 2 2 . . Drone Launches . | . . . . . . . . . . . Drone Recoveries . | . . . . . . . . . . . Exploration | -11 -10 -10 -7 -5 -5 -5 -5 -5 -5 -4 ------------- Run | Yrd Mat Sub Scr Fac Gar Fac Upp Upp Zhi Pro Turns Passed 12075 | 58 612 1078 2574 835 3839 843 966 1066 166 38 Spaces Moved 7508 | 55 381 836 1602 407 2123 421 573 954 150 6 Core 264 | 12 . . . . 2 . 205 45 . . Treads 3101 | . . . 1570 250 448 421 368 44 . . Legs 2185 | . . . . 157 1673 . . 289 60 6 Wheels 1958 | 43 381 836 32 . . . . 576 90 . Hover . | . . . . . . . . . . . Flight . | . . . . . . . . . . . Fastest Speed 50 | 50 80 95 125 90 105 160 50 50 80 120 Average Speed 138 | 73 87 108 159 188 153 161 130 99 96 120 Slowest Speed 750 | 80 95 125 160 270 750 163 330 240 120 120 Overloaded Moves . | . . . . . . . . . . . Propulsion Burnouts . | . . . . . . . . . . . Robots Hopped . | . . . . . . . . . . . Potential Cave-ins . | . . . . . . . . . . . Cave-ins Triggered . | . . . . . . . . . . . Exploration Rate (%) 49 | 3 56 42 95 12 99 9 67 96 62 3 Regions Visited 10 Branch Regions 6 Pre-discovered Areas 6 | . . 1 . . . . 2 . 3 . Known Exits Taken 1 | . . . . 1 . . . . . . Unknown Exits Taken 8 | 1 1 1 1 . . 1 1 1 1 . Scrap Searched 16 | . . . 9 . . . 3 4 . . Spaces Dug . | . . . . . . . . . . . Terrain Destroyed 226 | . . . . 6 170 28 15 . . 7 Melee . | . . . . . . . . . . . Projectile 94 | . . . . 6 38 28 15 . . 7 AOE 132 | . . . . . 132 . . . . . Terrain Rammed . | . . . . . . . . . . . Walls Destroyed . | . . . . . . . . . . . Machines Disabled . | . . . . . . . . . . . Actions | -11 -10 -10 -7 -5 -5 -5 -5 -5 -5 -4 --------- Run | Yrd Mat Sub Scr Fac Gar Fac Upp Upp Zhi Pro Total 8676 | 72 603 963 1624 472 2498 479 726 1045 169 25 Wait 417 | 4 180 86 7 . 58 8 7 51 10 6 Move 7497 | 54 380 835 1601 406 2121 420 572 953 149 6 Hop . | . . . . . . . . . . . Pick Up 137 | 9 10 6 4 23 53 3 19 9 . 1 Fast Attach 21 | . 2 . 2 . 7 . . 3 7 . Attach 103 | 5 . 2 1 18 34 5 27 7 1 3 Detach 22 | . . . 1 1 7 3 7 2 1 . Swap 36 | . 1 8 1 . 26 . . . . . Drop 69 | . 2 3 6 11 38 . 5 3 1 . Fire 273 | . 28 12 . 13 112 40 42 17 . 9 Melee 27 | . . 11 1 . 10 . 5 . . . Ram . | . . . . . . . . . . . Kick . | . . . . . . . . . . . Crush . | . . . . . . . . . . . Escape Stasis 10 | . . . . . 10 . . . . . Rewire 64 | . . . . . 22 . 42 . . . Trap . | . . . . . . . . . . . Miscellaneous . | . . . . . . . . . . . Route ------- -11/Scrapyard -10/Materials (discovered 2 exits: [*Min] / *Sub) -10/Subcaves (discovered 3 exits: Mat / [*Rec] / *Scr) -7/Scraptown (discovered 2 exits: *Fac x2) -5/Factory -5/Garrison (discovered 3 exits: *Fac x3) -5/Factory -5/Upper Caves -5/Upper Caves (discovered 2 exits: [*Fac] / *Zhi) -5/Zhirov -4/Proximity Caves History --------- Turn | Location | Event 11 | -11/Scrapyard | Discovered new exit (range 16) 59 | -11/Scrapyard | Entered Materials 302 | -10/Materials | Build established: Mutant 322 | -10/Materials | Discovered new exit (range 15) 658 | -10/Materials | Discovered new exit (range 7) 671 | -10/Materials | Entered Subcaves 671 | -10/Subcaves | Learned Materials emergency access door positions 672 | -10/Subcaves | Approached by a straggling Scientist 921 | -10/Subcaves | Shifting Twisted Machinery released Sub. Laser 936 | -10/Subcaves | Discovered new exit (range 18) 943 | -10/Subcaves | Lost 3 parts (1p1n1w) 1027 | -10/Subcaves | Visited Clippyterm 1031 | -10/Subcaves | Learned location of Deep Caves (-7) 1031 | -10/Subcaves | Learned Research machine intel 1102 | -10/Subcaves | Shifting Twisted Machinery released Mak. Light Armor Plating 1590 | -10/Subcaves | Visited 4L-MR0's lab 1616 | -10/Subcaves | Found Powered Cannon 1658 | -10/Subcaves | Identified exit to Materials 1743 | -10/Subcaves | Scientist uncovered a shortcut to Scraptown 1749 | -10/Subcaves | Entered Scraptown 2153 | -7/Scraptown | Discovered new exit (range 3) 2364 | -7/Scraptown | Visited Bundlers 2466 | -7/Scraptown | Visited Assassins FH 2503 | -7/Scraptown | Visited Shadow of the Wyrm 2568 | -7/Scraptown | Visited Fellowship of the Rings 3053 | -7/Scraptown | Visited CPS Storage 3075 | -7/Scraptown | Visited Junk Repository 3120 | -7/Scraptown | Visited The Evicted 3192 | -7/Scraptown | Visited UFD Registry 3192 | -7/Scraptown | Registered with UFD as "Nukemachine" 3272 | -7/Scraptown | Visited Research Penetration Think Tank 3307 | -7/Scraptown | Visited Analyses Database 3418 | -7/Scraptown | Delivered Scrap Shield to a Scientist 3557 | -7/Scraptown | Visited DA-N13 Charitable Foundation 3584 | -7/Scraptown | Visited Supply Room 3619 | -7/Scraptown | Visited Scrap Suit Storage 3685 | -7/Scraptown | Visited LU-1G1's Boring Crew 3771 | -7/Scraptown | Discovered new exit (range 3) 3904 | -7/Scraptown | Visited Abandonware Association 3935 | -7/Scraptown | Learned abandonware demo "REBOOT5.EXE" 3935 | -7/Scraptown | Learned abandonware demo "HACKBUD.EXE" 3973 | -7/Scraptown | Visited Science Guys 4031 | -7/Scraptown | Visited Infowarlord's Domain 4042 | -7/Scraptown | Found Spectral Analyzer 4211 | -7/Scraptown | Met Optimus 4211 | -7/Scraptown | Accepted into 0bPrime 4319 | -7/Scraptown | Civil war broke out across Scraptown 4322 | -7/Scraptown | Core integrity fell below 50% 4323 | -7/Scraptown | Entered Factory 4323 | -5/Factory | Evolved 10 slots: Power x1, Propulsion x2, Utility x5, Weapon x2 4327 | -5/Factory | Attached Powered Cannon, gained temporary slot: Power 4951 | -5/Factory | Build established: Hacker-Mutant 5042 | -5/Factory | Identified exit to Garrison 5158 | -5/Factory | Entered Garrison 5173 | -5/Garrison | Installed Relay Interface Framework 5284 | -5/Garrison | Phase Generator disabled 5336 | -5/Garrison | Garrison Relay disabled 5342 | -5/Garrison | Triggered checkpoint 5610 | -5/Garrison | Spotted B-75 Beast 5636 | -5/Garrison | Triggered checkpoint 5681 | -5/Garrison | Destroyed B-75 Beast 5691 | -5/Garrison | Lost 4 allies 5900 | -5/Garrison | Spotted B-86 Titan 5922 | -5/Garrison | Build established: Scavenger-Gunner 5963 | -5/Garrison | Destroyed B-86 Titan 5967 | -5/Garrison | Spotted B-90 Cyclops 6037 | -5/Garrison | Destroyed B-90 Cyclops 6092 | -5/Garrison | Rewired B-75 Beast 6274 | -5/Garrison | Triggered checkpoint 6373 | -5/Garrison | Discovered new exit (range 28) 6373 | -5/Garrison | Discovered new exit (range 63) 6373 | -5/Garrison | Discovered new exit (range 26) 6402 | -5/Garrison | Triggered checkpoint 6604 | -5/Garrison | Triggered checkpoint 6648 | -5/Garrison | Triggered checkpoint 7226 | -5/Garrison | Triggered checkpoint 7276 | -5/Garrison | Garrison Relay disabled 7606 | -5/Garrison | Spotted B-75 Beast 7606 | -5/Garrison | Spotted B-75 Beast 7659 | -5/Garrison | Destroyed B-75 Beast 7718 | -5/Garrison | Destroyed B-75 Beast 7904 | -5/Garrison | Triggered checkpoint 7916 | -5/Garrison | Garrison Relay disabled 7918 | -5/Garrison | Build established: Scavenger-Tank 8358 | -5/Garrison | Triggered checkpoint 8411 | -5/Garrison | Garrison Relay disabled 8729 | -5/Garrison | Garrison Relay disabled 8814 | -5/Garrison | Build established: Scavenger-Mutant 8997 | -5/Garrison | Entered Factory 9052 | -5/Factory | Discovered new exit (range 18) 9297 | -5/Factory | First assault squad dispatched 9446 | -5/Factory | Build established: Scavenger-Tank 9512 | -5/Factory | System corruption reached 10% 9545 | -5/Factory | Lost 3 parts (3u) 9840 | -5/Factory | Entered Upper Caves 9842 | -5/Upper Caves | UFD Scientist delivered a prototype 9842 | -5/Upper Caves | Attracted the attention of an 0b10 checkpoint 9850 | -5/Upper Caves | Found Prototype Protection 9851 | -5/Upper Caves | Identified Enh. Scrap Shield 9916 | -5/Upper Caves | Build established: Mutant 10171 | -5/Upper Caves | Lost 3 parts (1n2u) 10215 | -5/Upper Caves | Learned location of Warlord (-4) 10442 | -5/Upper Caves | Attracted the attention of an 0b10 outpost 10483 | -5/Upper Caves | Core integrity fell below 50% 10524 | -5/Upper Caves | Lost 9 parts (1p1n4u3w) 10590 | -5/Upper Caves | Build established: Scavenger-Mutant 10650 | -5/Upper Caves | Lost 6 parts (2p2n1u1w) 10702 | -5/Upper Caves | Discovered new exit (range 11) 10806 | -5/Upper Caves | Entered another Upper Caves area 10806 | -5/Upper Caves | Accompanied by 2 allies 10875 | -5/Upper Caves | Attracted the attention of an 0b10 checkpoint 10899 | -5/Upper Caves | Build established: Mutant 10927 | -5/Upper Caves | Lost 4 parts (1p2n1u) 10942 | -5/Upper Caves | Discovered new exit (range 9) 11026 | -5/Upper Caves | Encountered a Warlord checkpoint 11323 | -5/Upper Caves | Core integrity fell below 20% 11366 | -5/Upper Caves | Lost 3 parts (1n1u1w) 11708 | -5/Upper Caves | Discovered new exit (range 5) 11726 | -5/Upper Caves | Learned 4 Factory zone layouts 11872 | -5/Upper Caves | Entered Zhirov 11872 | -5/Zhirov | Accompanied by 1 ally 11872 | -5/Zhirov | Discovered new exit (range 3) 11887 | -5/Zhirov | Met Zhirov 11901 | -5/Zhirov | Learned location of Quarantine (-3) 11901 | -5/Zhirov | Learned location of Testing (-2) 11901 | -5/Zhirov | Learned location of Command (-1) 11917 | -5/Zhirov | Zhirov requested help retrieving the SGEMP Prototype 11932 | -5/Zhirov | Found Alien Artifact 11932 | -5/Zhirov | Identified Integrated Reactor 11932 | -5/Zhirov | Installed Integrated Reactor, increased core energy generation (+10) 12038 | -5/Zhirov | Entered Proximity Caves 12038 | -4/Proximity Caves | Accompanied by 1 ally 12048 | -4/Proximity Caves | System corruption reached 30% 12076 | -4/Proximity Caves | Destroyed by G-67 Veteran with Plasma Rifle Last Messages --------------- (Destroy). 12045_ Destroyed Hvy. Laser. 12047_ Integrated Corrupted Nova Cannon (+5). 12047_ Complication: FCS attempts to trigger Nova Cannon. 12047_ Complication: Nova Cannon misfires. 12048_ G-73 Enforcer destroyed. 12051_ Particle Accelerator destroyed. 12052_ System corrupted: Component data lost. 12053_ Acquired Adv. Heat Sink. 12058_ Authchip [Power] destroyed. 12067_ Dispersion Rifle destroyed. 12068_ System corrupted: Heat flow error (+132). 12073_ Lyr. Light Armor Plating destroyed. 12073_ Mak. Power Source destroyed. 12074_ G-67 Veteran destroyed. 12075_ Critical hit (Burn: +50). 12076_ Overheating: Energy bleed (-124). 12076_ System corrupted: Nova Cannon failed to cycle. Map ----- +----------------------------------------------------+ | ?????????????????????????????????????????????????? | | ?????????????????????????????????????????????????? | | ?????????????????????????????????????????????????? | | ?????????????????????????????????????????????????? | | ?????????????????????????????????????????????????? | | ?????????????????????????????????????????????????? | | ?????????????????????????????????????????????????? | | ?????????????????????????????????????????????????? | | ?????????????????????????????????????????????????? | | ?????????????????????????????????????????????????? | | ?????????????????????????????????????????????????? | | ?????????????????????????????????????????????????? | | ?????????????????????????????????????????????????? | | ?????????????????????????????????????????????????? | | ?????????????????????????????????????????????????? | | ?????????????????????????????????????????????????? | | ?????????????????????????????????????????????????? | | ?????????????????????????????????????????????????? | | ?????????????????????????????????????????????????? | | ?????????????????????????????????????????????????? | | ??????????????#####??????????????????????????????? | | ??????????????# #?????????????????????????????? | | ??????????????# #????????????????????????????? | | ???????????????# ""#???????????????????????????? | | ???????????????## " #######????????????????????? | | ???????????????#" " #*@ ##???????????????????? | | ??????????????## !% gg%! #???????????????????? | | ????????????# # g [ ######## ????????? | | ????????????# #???????? | | ???????? ???????? | | ???????????# ## [% ######### ???????? | | ???????????? ??##;= ##???????????? ????????? | | ???????????? ????######??????????????????????? | | ????????????# ??????????????????????????????????? | | ?????????????#???????????????????????????????????? | | ?????????????????????????????????????????????????? | | ?????????????????????????????????????????????????? | | ?????????????????????????????????????????????????? | | ?????????????????????????????????????????????????? | | ?????????????????????????????????????????????????? | | ?????????????????????????????????????????????????? | | ?????????????????????????????????????????????????? | | ?????????????????????????????????????????????????? | | ?????????????????????????????????????????????????? | | ?????????????????????????????????????????????????? | | ?????????????????????????????????????????????????? | | ?????????????????????????????????????????????????? | | ?????????????????????????????????????????????????? | | ?????????????????????????????????????????????????? | | ?????????????????????????????????????????????????? | +----------------------------------------------------+ Best States ------------- Heat Dissipation 116 Coolant Potential 65 Energy Generation 31 Energy Capacity 670 Matter Stores 300 Matter Capacity 300 Sight Range 24 Terrain Scan Density 10 Additional Mass Support 9 Armor Coverage 800 Core Shielding 40 Weapon Cycling 25 Evasion (%) 57 Targeting Accuracy 8 Target Analysis 6 Recoil Reduction 4 Particle Charging 30 Offensive Hacking 20 Authchip Count 1 Item Schematics ----------------- Imp. Arc Thrower | -5/Zhirov | Free Exp. Optical Array | -5/Zhirov | Free Exp. Heat Sink | -5/Zhirov | Free Assault Drone Bay | -5/Zhirov | Free Robot Schematics ------------------ None Fabricated ------------ Nothing Repaired ---------- Nothing Alien Tech Used ----------------- Integrated Reactor Achievements -------------- Giant Slayer Challenges ------------ None Game ------ Seed ScatterUtilityCompressor Manual? 0 Play Time 01:36:45 Cumulative 60.7 hours Start 2025.06.02 @ 22:45:15 End 2025.06.15 @ 00:08:14 Sessions 3 Manual Loads 0 Difficulty Rogue Special Mode None Game No. 63 Rogue 63 Adventurer 0 Explorer 0 Win Type - Total 2 Types 2/0/0/0/0/0/0/0/0/0 Lore% 42 Gallery% 34 Achievement% 35 Wizard Run 0 Options --------- Layout 1 ASCII 0 Keyboard 0 Movement Mouse Keybinds 0 Fullscreen 1 Font 24/Smallcaps Map View 50x35 Zoom Use 0% Tactical HUD 1 Map Filters NONE Filters NONE Steam 1 RUN: 5a2e31f5-9d9d-4159-bc18-6a2f3b72bdba